Cogmind - Beta 12 @@@ ROGUE MODE // 2023.03.15 @ 12:08:08 Player: wchar_t Result: Destroyed self via exploding Neutrino Reactor Performance ------------- Evolutions (6) 3000 Regions Visited (24) 4800 Robots Destroyed (252) 1260 Value Destroyed (10141) 10141 Prototype IDs (39) 780 Alien Tech Used (0) 0 Bonus (3994) 3994 TOTAL SCORE: 23975 Bonus ------- High Alert Combat Kills 1232 Follower Combat Kills 1317 Entered Garrisons 200 Network Hubs Disabled 200 Aligned with FarCom 300 Built Enhanced Grunts 300 Met R17 at Cetus 500 Friendly Fire -55 Cogmind --------- Core Integrity 0/1150 Matter 268/300 Energy 237/265 System Corruption 56% Temperature Cool (0) Movement Treading (179) Location -4/Factory Parts ------- > --- POWER (2) -------- Improved Ion Engine > --- PROPULSION (5) --- Treaded Heavy-Armored Exoskeleton > --- UTILITY (9) ------ Armored Scrap Engine Enhanced Optical Array Advanced Signal Interpreter 0b10 Decoder Chip [Scout] > --- WEAPON (3) ------- Hpw. Ballistic Penetrator Construct/G Gravity Flail (fused) Vibroblade > --- INVENTORY (5) ---- Advanced Sensor Array Encrypted Comm Array Nova Cannon Gravity Flail Force Lance Peak State ------------ > --- POWER ------------ Angular Momentum Engine Antimatter-Neutrino Reactor > --- PROPULSION ------- Improved Titanium Leg Improved Titanium Leg Treaded Heavy-Armored Exoskeleton > --- UTILITY ---------- Armored Scrap Engine Advanced Heat Sink Large Storage Unit Enhanced Optical Array Advanced Signal Interpreter Medium Regenerative Plating > --- WEAPON ----------- Advanced Variable Charge Gun Advanced Variable Charge Gun Hpw. KE Neutron Construct/G > --- INVENTORY -------- Quantum Reactor Advanced Sensor Array Encrypted Comm Array 0b10 Decoder Chip [Scout] Advanced Targeting Computer Improved Kinecellerator Centrium Medium Armor Plating Centrium Medium Armor Plating Advanced Shield Generator Long-range Tractor Beam PSU Rigger Advanced Variable Charge Gun Long-range Missile Launcher Smartbomb Launcher [Rating: 105] Favorites ----------- Power Constructs Engine Reinforced Deuterium Engine Power Core Nuclear Core Reactor Constructs Propulsion Constructs Treads Constructs Leg Improved Titanium Leg Hover Unit Antigrav System Utility Armored Scrap Engine Device Armored Scrap Engine Storage Large Storage Unit Processor Advanced Signal Interpreter Hackware Improved Hacking Suite Protection Hardened Light Armor Plating Weapon Constructs Energy Gun Wave Gun Energy Cannon Heavy Ion Cannon Ballistic Gun Constructs Ballistic Cannon Light Cannon Launcher Rocket Launcher Impact Weapon Impact Mace Slashing Weapon Greatsword Build | -11 -10 -10 -9 -9 -9 -8 -8 -8 -8 -6 -6 -6 -6 -6 -6 -5 -5 -5 -5 -5 -5 -4 -4 -4 ------- Run | Jun Mat Min Mat Min Exi Min Mat Sto Rec Fac Gar Fac Low Low Zio Pro Fac Ext Cet Arc Hub Fac Was Fac Slots Evolved 12 | . . . 2 . . . 2 . . 4 . . . . . . 2 . . . . 2 . . Power 1 | . . . . . . . . . . 1 . . . . . . . . . . . . . . Propulsion 3 | . . . 1 . . . 1 . . 1 . . . . . . . . . . . . . . Utility 7 | . . . 1 . . . 1 . . 1 . . . . . . 2 . . . . 2 . . Weapon 1 | . . . . . . . . . . 1 . . . . . . . . . . . . . . Parts Attached 242 | 8 6 3 20 3 4 4 18 16 2 19 24 24 2 7 2 2 8 6 9 . 4 1 8 42 Power 23 | 1 . 1 3 . . . 2 . . 4 . 3 . 1 . . . . 2 . . . . 6 Engine 14 | 1 . 1 3 . . . . . . 1 . 3 . 1 . . . . 1 . . . . 3 Core 5 | . . . . . . . 2 . . 2 . . . . . . . . . . . . . 1 Reactor 4 | . . . . . . . . . . 1 . . . . . . . . 1 . . . . 2 Propulsion 39 | 2 2 . 6 1 . . 7 5 1 2 2 4 1 4 . . . . . . . . . 2 Treads 11 | . . . 3 . . . 2 4 1 . . . . 1 . . . . . . . . . . Leg 27 | 2 2 . 3 1 . . 5 1 . 2 2 4 1 3 . . . . . . . . . 1 Wheel . | . . . . . . . . . . . . . . . . . . . . . . . . . Hover 1 | . . . . . . . . . . . . . . . . . . . . . . . . 1 Flight . | . . . . . . . . . . . . . . . . . . . . . . . . . Utility 80 | 2 2 2 6 1 3 2 5 4 1 4 9 5 1 . . . 5 4 4 . . . 3 17 Device 40 | 1 . . 5 1 2 1 3 2 1 2 4 2 1 . . . 2 1 . . . . 3 9 Storage 9 | 1 2 1 . . 1 . . 1 . 1 . . . . . . . . . . . . . 2 Processor 6 | . . . . . . . 1 . . . . 1 . . . . 1 . . . . . . 3 Hackware 1 | . . . . . . . . . . . . . . . . . . . 1 . . . . . Protection 24 | . . 1 1 . . 1 1 1 . 1 5 2 . . . . 2 3 3 . . . . 3 Artifact . | . . . . . . . . . . . . . . . . . . . . . . . . . Weapon 100 | 3 2 . 5 1 1 2 4 7 . 9 13 12 . 2 2 2 3 2 3 . 4 1 5 17 Energy Gun 15 | . . . . . . . . . . . . . . . . . 2 . 2 . 2 1 2 6 Energy Cannon 21 | . . . . . . . 1 2 . 4 3 4 . . . 1 . 1 . . 1 . . 4 Ballistic Gun 18 | 3 1 . 2 . 1 1 . 4 . 2 . . . . . . . . . . . . . 4 Ballistic Cannon 8 | . 1 . 3 . . . 1 . . . 2 . . . . . 1 . . . . . . . Launcher 24 | . . . . 1 . 1 2 1 . . 6 3 . 1 2 1 . 1 1 . 1 . 3 . Special Weapon . | . . . . . . . . . . . . . . . . . . . . . . . . . Impact Weapon 10 | . . . . . . . . . . 3 2 3 . . . . . . . . . . . 2 Slashing Weapon 4 | . . . . . . . . . . . . 2 . 1 . . . . . . . . . 1 Piercing Weapon . | . . . . . . . . . . . . . . . . . . . . . . . . . Special Melee Weapon . | . . . . . . . . . . . . . . . . . . . . . . . . . Unidentified Prototypes 10 | . . . . . . . . . . 2 . . . . . . 1 . 4 . 1 . . 2 Corrupted Parts 3 | . . . . . . . . . . . . . . . . . . . . . 1 . . 2 System Corruption 14 | . . . . . . . . . . . . . . . . . . . . . 11 . . 3 Parts Lost 62 | . . 1 3 . . . 1 4 1 1 6 10 1 . . . . . . . 1 . 8 25 Power 11 | . . 1 1 . . . . . . 1 1 2 . . . . . . . . . . . 5 Propulsion 10 | . . . 1 . . . . 1 1 . 1 3 . . . . . . . . 1 . . 2 Utility 22 | . . . . . . . 1 2 . . 1 2 . . . . . . . . . . 4 12 Weapon 19 | . . . 1 . . . . 1 . . 3 3 1 . . . . . . . . . 4 6 Highest Loss Streak 9 | . . 1 1 . . . 1 2 1 1 3 5 1 . . . . . . . 1 . 7 9 To Critical Strikes 3 | . . . . . . . . . . . 1 1 . . . . . . . . . . . 1 Average Slot Usage (%) 74 | . 100 99 97 100 100 100 87 96 83 71 64 64 61 61 66 66 71 72 74 79 76 64 42 52 Engine 5 | . 14 13 10 11 11 11 . . . 5 . 6 6 6 13 13 6 . 1 5 5 5 2 1 Core 3 | . . . . . . . 8 9 9 4 7 2 . . . . . 5 5 4 . . . 2 Treads 6 | . . . 10 11 11 11 9 27 22 7 1 . . . . . . . . . . . 5 5 Leg 13 | . 28 28 21 22 22 22 24 6 7 6 11 15 20 18 20 20 17 17 17 17 16 5 . . Device 12 | . 14 . 10 11 11 11 9 8 18 17 15 12 13 13 13 13 15 11 11 11 11 10 10 10 Storage 7 | . 14 14 11 11 11 11 9 9 9 6 6 6 6 6 6 6 5 5 5 5 5 5 2 4 Processor 4 | . . . . . . . . 9 . . . 1 6 6 6 6 9 11 11 11 11 10 10 13 Protection 4 | . . 13 11 11 11 11 9 9 . 1 4 3 . . . . 2 5 3 5 5 5 1 1 Energy Cannon 2 | . . . . . . . . 5 9 5 3 5 1 . . . . 1 . . . . . 2 Ballistic Gun 4 | . 23 14 11 1 9 10 9 8 8 5 . . . . . . 4 5 5 5 5 5 1 1 Ballistic Cannon 3 | . 4 14 10 11 11 11 8 3 . 3 6 2 . . . . . . . . . . . . Slashing Weapon 1 | . . . . . . . . . . . . 1 6 8 6 6 4 . . . . . . . Naked Turns . | . . . . . . . . . . . . . . . . . . . . . . . . . Heaviest Build 108 | 12 14 23 28 29 37 37 44 108 100 104 62 71 49 58 63 63 73 73 74 74 77 77 77 75 Greatest Support 131 | 20 20 20 20 20 20 20 35 86 86 116 131 102 97 97 86 84 84 85 85 85 85 65 43 98 Greatest Overweight (x) 2 | . . 1 2 1 1 1 1 1 2 1 . . . . . . . . . . 1 1 1 1 Average Overweight (x) . | . . . 1 1 1 1 1 1 1 . . . . . . . . . . . . 1 . . Largest Inventory Capacity 25 | 8 25 10 10 10 15 15 15 25 25 25 15 15 15 15 15 15 15 15 15 15 15 15 15 10 Average Capacity 14 | 7 8 9 10 10 11 15 15 24 25 15 15 15 15 15 15 15 15 15 15 15 15 15 9 9 Most Carried 18 | 6 9 8 10 10 10 11 15 18 17 16 15 15 15 15 15 15 15 15 15 15 15 15 15 10 Average Carried 13 | 4 7 8 9 10 9 10 14 16 16 14 14 14 14 14 14 14 14 14 14 15 14 15 9 7 Final Capacity 25 | 8 8 10 10 10 15 15 15 25 25 15 15 15 15 15 15 15 15 15 15 15 15 15 5 5 Final Carried 16 | 6 8 8 10 10 10 11 14 16 16 15 12 15 15 15 14 15 15 15 15 15 15 15 5 5 Scrap Engine Consumption 115 | . . . . . . . . . 17 14 12 21 2 8 2 . 8 7 6 1 1 1 . 15 Constructs Created 9 | . . . . . . . . . 2 1 1 1 . . . . 3 . . . . . . 1 Constructs Modified 34 | . . . . . . . . . 2 9 3 7 1 1 1 . 1 3 . 1 1 1 . 3 Class Distribution -------------------- 72% | Mutant 14% | Construct 6% | Scavenger-Mutant Dominant Class ---------------- Mutant | -10/Materials Mutant | -10/Mines Mutant | -9/Materials Mutant | -9/Mines Mutant | -9/Exiles Mutant | -8/Mines Mutant | -8/Materials Mutant | -8/Storage Mutant | -8/Recycling Construct | -6/Factory Construct | -6/Garrison Mutant | -6/Factory Mutant | -6/Lower Caves Mutant | -6/Lower Caves Mutant | -6/Zion Mutant | -5/Proximity Caves Mutant | -5/Factory Mutant | -5/Extension Commander-Mutant | -5/Cetus Commander-Skirmisher | -5/Archives Mutant | -5/Hub_04(d) Skirmisher | -4/Factory Mutant | -4/Waste Mutant | -4/Factory Resources | -11 -10 -10 -9 -9 -9 -8 -8 -8 -8 -6 -6 -6 -6 -6 -6 -5 -5 -5 -5 -5 -5 -4 -4 -4 ----------- Run | Jun Mat Min Mat Min Exi Min Mat Sto Rec Fac Gar Fac Low Low Zio Pro Fac Ext Cet Arc Hub Fac Was Fac Matter Collected 6448 | 352 104 60 702 110 . 116 284 546 87 374 849 675 47 238 47 59 81 339 225 65 111 . . 977 Remotely 439 | . . . . . . 74 54 152 . . 159 . . . . . . . . . . . . . Salvage Created 10244 | 243 190 29 851 97 . 10 305 855 708 631 990 1672 49 200 . 174 273 492 76 104 287 . 277 1731 Parts 498 | 20 17 3 67 4 . 3 22 55 22 37 44 58 2 7 . 15 10 23 1 3 14 . . 71 Haulers Intercepted 2 | . . . . . . . . 1 . . . . . . . . . . . . . . . 1 Recyclers Shooed 10 | 1 . . 1 1 . . . 1 1 . . . . . . . . 2 . . . . . 3 Parts Field Recycled . | . . . . . . . . . . . . . . . . . . . . . . . . . Retrieved Matter . | . . . . . . . . . . . . . . . . . . . . . . . . . Parts Self-Destructed 20 | . . . . . . . . . . . . . 2 6 1 11 . . . . . . . . Prevented 3 | . . . . . . . . . . . . . . . . 3 . . . . . . . . Kills | -11 -10 -10 -9 -9 -9 -8 -8 -8 -8 -6 -6 -6 -6 -6 -6 -5 -5 -5 -5 -5 -5 -4 -4 -4 ------- Run | Jun Mat Min Mat Min Exi Min Mat Sto Rec Fac Gar Fac Low Low Zio Pro Fac Ext Cet Arc Hub Fac Was Fac Combat Hostiles Destroyed 196 | . 6 3 29 3 . 3 8 16 1 11 30 31 2 7 . 7 2 5 2 1 3 . 2 24 Melee 23 | . . . . . . . . . . . . 9 2 3 . 1 2 . . . . . . 6 Guns 53 | . 6 3 13 . . . 3 7 . 3 . . . . . . . 5 1 1 3 . . 8 Cannons 62 | . . . 16 . . . 3 6 1 7 12 10 . . . . . . . . . . . 7 AOE 48 | . . . . 3 . 3 2 3 . 1 18 4 . 4 . 5 . . 1 . . . 2 2 Classes Destroyed 16 | 3 3 . 2 . . . . 2 . 2 3 . . . . . . . . . . . 1 . Worker 14 | 2 1 . . . . . 1 1 . . . 6 . . . . . . . . 2 . . 1 Builder 3 | . . . 1 . . . 1 . . . . 1 . . . . . . . . . . . . Tunneler 6 | 5 . . . . . . 1 . . . . . . . . . . . . . . . . . Hauler 2 | . . . . . . . . 1 . . . . . . . . . . . . . . . 1 Recycler 19 | 1 . . 1 . . . . 3 9 . . 1 . . . . 1 1 . . . . . 2 Operator 3 | . . . . . . . . 1 . . . . . . . . . . . 1 1 . . . Watcher 9 | . 1 . 2 . . . 1 . . 1 . 2 . . . . . 1 . . 1 . . . Swarmer 51 | . 3 3 15 . . 3 . 4 . . 8 2 2 4 . 5 . . . . . . . 2 Grunt 63 | . 3 . 6 3 . . 7 8 . 2 17 10 . 2 . . . . 1 . 2 . . 2 Brawler 4 | . . . . . . . . . . . 2 2 . . . . . . . . . . . . Duelist 3 | . . . . . . . . . . . 1 1 . . . . . . . . . . . 1 Sentry 31 | . . . 8 . . . 1 4 1 3 1 3 . . . . 2 3 . 1 1 . . 3 Hunter 11 | . . . . . . . . . . 3 . 1 . 1 . 1 . 1 . . . . . 4 Programmer 29 | . . . . . . . . . . 3 . 12 . . . 1 . 1 . . . . . 12 Behemoth 1 | . . . . . . . . . . . 1 . . . . . . . . . . . . . Compactor 2 | . . . . . . . . . . . . . . . . . . . . . . . 2 . Cetus Guard 1 | . . . . . . . . . . . . . . . . . . . 1 . . . . . Best Kill Streak 9 | 4 5 3 8 3 . 3 5 7 9 3 4 6 1 4 . 5 2 2 1 2 3 . 1 4 Combat Bots Only 7 | . 3 3 7 3 . 3 3 5 1 3 4 5 1 4 . 5 1 2 1 1 2 . 1 2 Max Kills in Single Turn 3 | 1 2 1 2 3 . 2 2 3 2 1 3 3 1 2 . 3 1 1 1 1 3 . 1 1 Gunslinging 1 | . . . . . . . . . . . . . . . . . . . . . 1 . . . Exploded 3 | . . . . 3 . 2 2 2 . 1 3 2 . 2 . 3 . . 1 . . . 1 1 Melee 1 | . . . . . . . . . . . . 1 1 1 . 1 1 . . . . . . 1 Uniques/NPCs Destroyed . | . . . . . . . . . . . . . . . . . . . . . . . . . Combat | -11 -10 -10 -9 -9 -9 -8 -8 -8 -8 -6 -6 -6 -6 -6 -6 -5 -5 -5 -5 -5 -5 -4 -4 -4 -------- Run | Jun Mat Min Mat Min Exi Min Mat Sto Rec Fac Gar Fac Low Low Zio Pro Fac Ext Cet Arc Hub Fac Was Fac Damage Taken 20416 | . 182 134 977 8 . 81 355 921 231 888 2203 3825 240 421 . 333 416 641 133 145 774 . 1020 6488 Core 2590 | . 20 16 158 . . 21 23 145 10 85 160 431 12 55 . 23 53 56 . . 172 . 140 1010 Absorbed by Shields 477 | . . . 165 3 . . 92 107 . . . 12 . . . . . 98 . . . . . . Redirected to Shielding 102 | . . . . . . . . . . . . 102 . . . . . . . . . . . . Regen/Repaired (Parts) 4938 | . . . 77 . . . . . . 272 384 895 81 510 782 . 110 311 74 101 122 221 48 950 Core Remaining (%) 64 | 100 . 85 . . . 55 . . 67 . . . . . . 9 . . . . 71 . . . Volleys Fired 611 | 18 17 10 71 4 . 3 34 60 18 35 79 62 . 6 . 7 . 42 23 13 10 . 15 84 Largest 3 | 2 2 2 2 2 . 2 2 2 2 3 3 2 . 1 . 1 . 3 3 3 2 . 1 3 Hottest 291 | 40 40 55 58 68 . 68 58 98 93 121 126 143 . 43 . 75 . 192 192 197 116 . 80 291 Shots Fired 1074 | 36 34 20 142 5 . 6 65 108 36 92 125 98 . 6 . 7 . 86 32 28 15 . 16 117 Gun 526 | 36 34 10 71 . . . 33 56 18 35 . . . . . . . 71 27 28 14 . 3 90 Cannon 481 | . . 10 71 4 . 3 30 49 18 57 99 94 . . . 5 . 10 4 . . . . 27 Launcher 67 | . . . . 1 . 3 2 3 . . 26 4 . 6 . 2 . 5 1 . 1 . 13 . Special . | . . . . . . . . . . . . . . . . . . . . . . . . . Kinetic 694 | 36 34 20 142 4 . 3 63 76 18 56 59 30 . . . . . 45 23 13 9 . . 63 Thermal 275 | . . . . . . . . 29 18 36 40 64 . . . . . 26 4 15 5 . 3 35 Explosive 67 | . . . . 1 . 3 2 3 . . 26 4 . 6 . 2 . 5 1 . 1 . 13 . Electromagnetic 38 | . . . . . . . . . . . . . . . . 5 . 10 4 . . . . 19 Robot Hit Streak 22 | 8 9 2 11 3 . . 11 7 13 22 12 6 . 1 . 3 . 17 11 6 13 . 12 8 Robot Miss Streak 8 | 2 2 7 3 2 . . 2 2 2 8 8 7 . 2 . 1 . 5 2 3 2 . . 3 Penetration Max 1 | . . . . . . . . . . . . . . . . . . . . . . . . 1 Secondary Targets 2 | . . . . . . . . . . . . . . . . . . . . . 1 . . 1 Max Gunslinging Chain 1 | . . . . . . . . . . . . . . . . . . . . . 1 . . 1 Shots Hit Robots 762 | 22 22 5 98 2 . . 46 68 26 50 78 117 4 8 . 5 11 44 24 19 8 . 12 93 Core Hits 425 | 10 13 3 44 4 . 6 22 33 11 44 67 50 2 8 . 8 4 17 7 7 9 . 7 49 Critical Kills 5 | 1 1 . . . . . . 1 . . . 1 . . . . . . . . . . . 1 Critical Parts Destroyed 14 | . . . . . . . . . . . . 11 . . . . . . . . . . . 3 Critical Strikes 40 | 1 1 . 3 . . . 1 1 1 1 1 15 1 1 . . 3 2 1 . 1 . . 6 Burn 1 | . . . . . . . . . . . . . . . . . . . . . . . . 1 Destroy 4 | 1 1 . . . . . . 1 . . . . . . . . . . . . . . . 1 Blast 11 | . . . 3 . . . 1 . 1 1 1 . . . . . . 2 1 . 1 . . . Smash 15 | . . . . . . . . . . . . 12 . . . . . . . . . . . 3 Sever 9 | . . . . . . . . . . . . 3 1 1 . . 3 . . . . . . 1 Melee Attacks 210 | . . . . . . . . . . 2 15 103 5 28 . 1 17 . . . . . . 39 Impact 105 | . . . . . . . . . . 2 15 74 . . . . . . . . . . . 14 Slashing 105 | . . . . . . . . . . . . 29 5 28 . 1 17 . . . . . . 25 Piercing . | . . . . . . . . . . . . . . . . . . . . . . . . . Sneak Attacks 9 | . . . . . . . . . . . . 8 . . . . 1 . . . . . . . Combat Hostiles 3 | . . . . . . . . . . . . 3 . . . . . . . . . . . . Follow-up Attacks 7 | . . . . . . . . . . . . . . . . . . . . . . . . 7 Damage Inflicted 28181 | 245 429 97 1595 141 . 197 1278 1624 641 1202 3489 5631 189 648 . 534 638 1246 859 474 779 . 2438 3807 Guns 6827 | 245 275 59 734 . . . 376 578 223 366 . . . . . . . 1145 628 474 240 . 62 1422 Cannons 7311 | . . 38 861 17 . . 388 726 402 792 1532 1476 . . . 136 . 101 107 . . . . 735 Explosions 8271 | . 154 . . 124 . 157 514 307 . 43 1957 803 . 356 . 340 . . 124 . 539 . 2376 477 Melee 5657 | . . . . . . . . . . . . 3352 189 292 . 58 638 . . . . . . 1128 Ramming 115 | . . . . . . 40 . 13 16 1 . . . . . . . . . . . . . 45 Kinetic 8427 | 245 275 97 1595 17 . . 764 742 223 503 784 414 . . . . . 774 557 271 131 . . 1035 Thermal 5755 | . . . . . . . 299 562 402 655 748 1416 . . . . . 371 71 203 109 . 62 857 Explosive 6912 | . 154 . . 124 . 157 215 307 . . 1957 449 . 356 . 340 . . 124 . . . 2376 353 Electromagnetic 1315 | . . . . . . . . . . 43 . . . . . 136 . 101 107 . 539 . . 389 Impact 2542 | . . . . . . . . . . . . 2172 . . . . . . . . . . . 370 Slashing 3115 | . . . . . . . . . . . . 1180 189 292 . 58 638 . . . . . . 758 Piercing . | . . . . . . . . . . . . . . . . . . . . . . . . . Highest Corruption 56 | . . . . . . . . . . 1 1 10 10 10 10 . . . . . 20 . 18 56 Average Corruption 13 | . . . . . . . . . . 1 1 6 10 10 10 . . . . . 15 . 9 36 Corruption Purged . | . . . . . . . . . . . . . . . . . . . . . . . . . Corruption Blocked . | . . . . . . . . . . . . . . . . . . . . . . . . . Effects 377 | . . . . . . . . . . 11 9 107 15 50 5 . . . . . 2 . 7 171 Message Errors 86 | . . . . . . . . . . 1 2 25 4 14 1 . . . . . . . 1 38 Matter Fused 79 | . . . . . . . . . . 2 3 26 4 13 . . . . . . 2 . 1 28 Heat Flow Errors 41 | . . . . . . . . . . 2 1 13 . 3 2 . . . . . . . . 20 Energy Discharges 45 | . . . . . . . . . . . 2 15 2 9 1 . . . . . . . 1 15 Parts Rejected 7 | . . . . . . . . . . . . 1 1 . . . . . . . . . . 5 Parts Fused 6 | . . . . . . . . . . . . 4 . . 1 . . . . . . . . 1 Data Loss (minor) 37 | . . . . . . . . . . 2 . 8 3 8 . . . . . . . . 1 15 Data Loss (major) 15 | . . . . . . . . . . 1 . 5 1 1 . . . . . . . . . 7 Misfires 17 | . . . . . . . . . . 1 . 6 . . . . . . . . . . 1 9 Alerts 15 | . . . . . . . . . . 2 1 2 . 2 . . . . . . . . . 8 Misdirections 18 | . . . . . . . . . . . . . . . . . . . . . . . 2 16 Weapon Failures 11 | . . . . . . . . . . . . 2 . . . . . . . . . . . 9 Overload Shots . | . . . . . . . . . . . . . . . . . . . . . . . . . Overflow Damage 1658 | . 9 . 5 . . 16 111 . 14 . 32 915 . . . 47 98 . . . 26 . 33 352 Projectiles 117 | . . . 5 . . . . . 14 . 26 50 . . . . . . . . . . . 22 Explosions 375 | . 9 . . . . 16 111 . . . 6 75 . . . 47 . . . . 26 . 33 52 Melee 1166 | . . . . . . . . . . . . 790 . . . . 98 . . . . . . 278 Knockbacks 53 | . . 1 5 1 . . 6 1 . 3 10 24 . . . . . . . . . . . 2 Impact 13 | . . . . . . . . . . 1 . 10 . . . . . . . . . . . 2 Kinetic 39 | . . 1 5 1 . . 6 1 . 2 10 13 . . . . . . . . . . . . Secondary 1 | . . . . . . . . . . . . 1 . . . . . . . . . . . . Self-Inflicted Damage 1022 | . . . . . . 12 43 . . 15 229 130 . 39 . . . . . . . . 358 196 Shots 25 | . . . . . . 1 1 . . 1 7 3 . 1 . . . . . . . . 8 3 Rammed 19 | . . . . . . . . 2 1 1 . . . . . . . . . . . . . 15 Targets Rammed 28 | . . . 1 . . 6 . 3 1 1 . . . . . . . . . . . . . 16 Kicked 7 | . . . 1 . . 6 . . . . . . . . . . . . . . . . . . Crushed 2 | . . . . . . . . 1 . . . . . . . . . . . . . . . 1 Highest Temperature 490 | . 6 45 99 15 . 45 24 126 42 268 139 348 . 198 234 180 . 333 42 240 11 . 16 490 Average Temperature 64 | . 6 27 22 10 . 22 11 33 19 59 17 82 . 84 103 78 . 103 28 91 7 . 10 132 Received Heat Transfer 2906 | . 54 . 278 4 . . 162 468 54 120 570 736 21 27 . . 45 85 . . 30 . . 252 Effects 6 | . . . . . . . . . . . . 1 . . . . . . . . . . . 5 Shutdowns 5 | . . . . . . . . . . . . 1 . . . . . . . . . . . 4 Damage (minor) 1 | . . . . . . . . . . . . . . . . . . . . . . . . 1 Siege Activations . | . . . . . . . . . . . . . . . . . . . . . . . . . Robots Corrupted 1 | . . . . . . . . . . . . . . . . 1 . . . . . . . . Combat Hostiles 1 | . . . . . . . . . . . . . . . . 1 . . . . . . . . Parts Fried 14 | . . . . . . . . . . . . 5 . . . 2 . 2 . . 1 . . 4 Impact Corruptions 32 | . . . . . . . . . . . . 26 . . . . . . . . . . . 6 Robots Melted 1 | . . . . . . . . . . . . 1 . . . . . . . . . . . . Combat Hostiles 1 | . . . . . . . . . . . . 1 . . . . . . . . . . . . Parts Melted 10 | . . . . . . . . . . . . 4 . . . . . 1 . . . . . 5 Heat Transferred 7315 | . . . . . . . 200 777 555 777 999 1885 . . . . . 555 111 296 148 . 111 901 Parts Sabotaged . | . . . . . . . . . . . . . . . . . . . . . . . . . Parts Stolen . | . . . . . . . . . . . . . . . . . . . . . . . . . Parts Stripped . | . . . . . . . . . . . . . . . . . . . . . . . . . Power Chain Reactions . | . . . . . . . . . . . . . . . . . . . . . . . . . Missiles Intercepted . | . . . . . . . . . . . . . . . . . . . . . . . . . Alert | -11 -10 -10 -9 -9 -9 -8 -8 -8 -8 -6 -6 -6 -6 -6 -6 -5 -5 -5 -5 -5 -5 -4 -4 -4 ------- Run | Jun Mat Min Mat Min Exi Min Mat Sto Rec Fac Gar Fac Low Low Zio Pro Fac Ext Cet Arc Hub Fac Was Fac Peak Influence 1466 | 40 292 95 557 298 . 86 160 245 126 118 1135 1466 . . . . 114 292 660 465 498 220 185 445 Initial 595 | . 26 35 37 217 . . 33 67 83 . 50 595 . . . . 37 18 163 264 162 220 77 109 Average 260 | 14 169 91 263 228 . 3 67 123 33 56 561 733 . . . . 70 90 455 422 236 220 135 198 Maximum Alert Level 4 | . 1 . 2 1 . . . 1 . . 4 4 . . . . . 1 2 2 2 1 . 2 Low Security (%) 57 | 100 52 100 38 29 . 100 100 79 100 100 8 . . . . . 100 77 13 . 39 . 100 52 Level 1 18 | . 47 . 49 70 . . . 20 . . 20 5 . . . . . 22 21 25 51 100 . 36 Level 2 16 | . . . 11 . . . . . . . 41 58 . . . . . . 65 74 8 . . 11 Level 3 3 | . . . . . . . . . . . 25 9 . . . . . . . . . . . . Level 4 4 | . . . . . . . . . . . 3 26 . . . . . . . . . . . . Level 5 . | . . . . . . . . . . . . . . . . . . . . . . . . . High Security . | . . . . . . . . . . . . . . . . . . . . . . . . . Max Security . | . . . . . . . . . . . . . . . . . . . . . . . . . Squads Dispatched 48 | . 2 . 2 . . . 3 3 . 4 . 20 . . . . 1 2 1 . 3 . . 7 Investigation 8 | . 1 . 1 . . . . 2 . . . 3 . . . . . . 1 . . . . . Extermination 18 | . . . . . . . . . . 3 . 9 . . . . 1 . . . . . . 5 Reinforcement 15 | . 1 . 1 . . . 3 1 . 1 . 2 . . . . . 2 . . 2 . . 2 Assault 3 | . . . . . . . . . . . . 3 . . . . . . . . . . . . Garrison 4 | . . . . . . . . . . . . 3 . . . . . . . . 1 . . . Intercept . | . . . . . . . . . . . . . . . . . . . . . . . . . Searches Triggered . | . . . . . . . . . . . . . . . . . . . . . . . . . Construction Impeded 1 | . . . . . . . . . . 1 . . . . . . . . . . . . . . Haulers Reinforced 1 | . . . . . . . . . . . . 1 . . . . . . . . . . . . Active Scanning Responses . | . . . . . . . . . . . . . . . . . . . . . . . . . Cargo Convoy Interrupts . | . . . . . . . . . . . . . . . . . . . . . . . . . Stealth | -11 -10 -10 -9 -9 -9 -8 -8 -8 -8 -6 -6 -6 -6 -6 -6 -5 -5 -5 -5 -5 -5 -4 -4 -4 --------- Run | Jun Mat Min Mat Min Exi Min Mat Sto Rec Fac Gar Fac Low Low Zio Pro Fac Ext Cet Arc Hub Fac Was Fac Distress Signals 18 | . . . 2 . . . 2 3 . 1 . 2 . . . . . 1 2 . . . . 5 Communications Jammed . | . . . . . . . . . . . . . . . . . . . . . . . . . Distress Signals . | . . . . . . . . . . . . . . . . . . . . . . . . . Times Spotted 354 | . 11 3 40 3 . 3 15 22 3 16 41 62 8 8 . 8 3 17 13 8 14 . 6 50 Peak Tracking Total 9 | . 4 3 9 3 . 3 5 5 2 4 5 5 4 4 . 5 1 3 5 1 9 . 4 9 Tactical Retreats 26 | . . . 4 . . . 1 4 . . 3 7 3 1 . 1 . . . . . . . 2 Traps | -11 -10 -10 -9 -9 -9 -8 -8 -8 -8 -6 -6 -6 -6 -6 -6 -5 -5 -5 -5 -5 -5 -4 -4 -4 ------- Run | Jun Mat Min Mat Min Exi Min Mat Sto Rec Fac Gar Fac Low Low Zio Pro Fac Ext Cet Arc Hub Fac Was Fac Traps Triggered 16 | . 2 . 1 . . . 1 . . 3 2 4 . . . . . . . . . 1 . 2 Indirectly . | . . . . . . . . . . . . . . . . . . . . . . . . . Trap Hack Attempts . | . . . . . . . . . . . . . . . . . . . . . . . . . Triggered . | . . . . . . . . . . . . . . . . . . . . . . . . . Disarmed . | . . . . . . . . . . . . . . . . . . . . . . . . . Reprogrammed . | . . . . . . . . . . . . . . . . . . . . . . . . . Reused . | . . . . . . . . . . . . . . . . . . . . . . . . . Traps Extracted . | . . . . . . . . . . . . . . . . . . . . . . . . . Installed . | . . . . . . . . . . . . . . . . . . . . . . . . . Triggered 2 | . . . . . . . . . . . . . . 2 . . . . . . . . . . Power Sources Rigged 5 | . . . . . . . . . . . 3 . . . . . . . . . . . 2 . Exploded 5 | . . . . . . . . . . . 3 . . . . . . . . . . . 2 . Machines | -11 -10 -10 -9 -9 -9 -8 -8 -8 -8 -6 -6 -6 -6 -6 -6 -5 -5 -5 -5 -5 -5 -4 -4 -4 ---------- Run | Jun Mat Min Mat Min Exi Min Mat Sto Rec Fac Gar Fac Low Low Zio Pro Fac Ext Cet Arc Hub Fac Was Fac Machines Disabled 50 | . 2 . . . . . 3 3 . 1 1 14 . . . . . 2 1 3 7 . . 13 Max in Single Turn 9 | . 2 . . . . . 3 1 . 1 1 9 . . . . . 1 1 1 7 . . 3 Garrison Access 2 | . . . . . . . . 1 . . . 1 . . . . . . . . . . . . Garrison Relay 1 | . . . . . . . . . . . 1 . . . . . . . . . . . . . Network Hub 1 | . . . . . . . . . . . . . . . . . . . . . 1 . . . Machines Repaired . | . . . . . . . . . . . . . . . . . . . . . . . . . Machines Sabotaged . | . . . . . . . . . . . . . . . . . . . . . . . . . Overloaded Fab Kills . | . . . . . . . . . . . . . . . . . . . . . . . . . Hacking | -11 -10 -10 -9 -9 -9 -8 -8 -8 -8 -6 -6 -6 -6 -6 -6 -5 -5 -5 -5 -5 -5 -4 -4 -4 --------- Run | Jun Mat Min Mat Min Exi Min Mat Sto Rec Fac Gar Fac Low Low Zio Pro Fac Ext Cet Arc Hub Fac Was Fac Machines Accessed 58 | . 2 . 6 . 2 . 1 3 2 12 1 10 . 2 . . 3 8 1 1 1 . . 3 Terminals 38 | . 2 . 5 . . . 1 2 1 7 1 6 . . . . 2 8 1 . 1 . . 1 Fabricators 6 | . . . . . . . . . . 2 . 2 . . . . 1 . . . . . . 1 Repair Stations 3 | . . . 1 . . . . . . 1 . 1 . . . . . . . . . . . . Recycling Units 3 | . . . . . . . . . 1 1 . . . . . . . . . . . . . 1 Scanalyzers . | . . . . . . . . . . . . . . . . . . . . . . . . . Garrison Access 3 | . . . . . . . . 1 . 1 . 1 . . . . . . . . . . . . Total Hacks 127 | . 7 . 16 . 2 . 5 5 4 25 2 20 . 2 . . 6 19 4 1 1 . . 8 Successful 60 | . 3 . 11 . 2 . 2 2 2 10 . 6 . 2 . . 4 11 . 1 . . . 4 Failed 66 | . 4 . 5 . . . 3 3 1 15 2 14 . . . . 2 8 4 . 1 . . 4 Catastrophic 16 | . . . . . . . 1 2 1 1 . 5 . . . . 1 1 1 . 1 . . 2 Database Lockouts 1 | . . . . . . . . . 1 . . . . . . . . . . . . . . . Manual 47 | . . . 4 . 1 . 5 6 3 12 . 4 . . . . 3 8 1 . . . . . Terminals 91 | . 7 . 9 . . . 5 4 3 19 2 10 . . . . 5 19 4 . 1 . . 3 Fabricators 9 | . . . . . . . . . . 2 . 5 . . . . 1 . . . . . . 1 Repair Stations 11 | . . . 7 . . . . . . 2 . 2 . . . . . . . . . . . . Recycling Units 6 | . . . . . . . . . 1 1 . . . . . . . . . . . . . 4 Scanalyzers . | . . . . . . . . . . . . . . . . . . . . . . . . . Garrison Access 5 | . . . . . . . . 1 . 1 . 3 . . . . . . . . . . . . Terminal Hacks 35 | . 3 . 4 . 2 . 1 1 1 4 . 4 . 2 . . 2 9 . 1 . . . 1 Record 2 | . . . . . 1 . . . . . . . . . . . . . . 1 . . . . Robot Analysis 2 | . . . . . . . . . 1 1 . . . . . . . . . . . . . . Prototype ID Bank 1 | . . . 1 . . . . . . . . . . . . . . . . . . . . . Open Door 9 | . . . . . . . . 1 . . . . . 2 . . 1 5 . . . . . . Branch Access Points 3 | . . . 1 . . . . . . . . 1 . . . . . . . . . . . 1 Terminal Index 2 | . . . . . . . 1 . . . . . . . . . 1 . . . . . . . Repair Station Index 1 | . . . 1 . . . . . . . . . . . . . . . . . . . . . Alert Level 1 | . 1 . . . . . . . . . . . . . . . . . . . . . . . Unreport Threat 3 | . . . . . . . . . . . . 1 . . . . . 2 . . . . . . Locate Traps 6 | . . . . . . . . . . 3 . 2 . . . . . 1 . . . . . . Dispatch Records 1 | . 1 . . . . . . . . . . . . . . . . . . . . . . . Surveillance Status 1 | . 1 . . . . . . . . . . . . . . . . . . . . . . . Zone Layout 2 | . . . 1 . . . . . . . . . . . . . . 1 . . . . . . EX-Prototype ID Bank 1 | . . . . . 1 . . . . . . . . . . . . . . . . . . . Fabricator Hacks 5 | . . . . . . . . . . 1 . 2 . . . . 1 . . . . . . 1 Network Status 3 | . . . . . . . . . . 1 . 1 . . . . 1 . . . . . . . Build 2 | . . . . . . . . . . . . 1 . . . . . . . . . . . 1 Repair Station Hacks 8 | . . . 6 . . . . . . 2 . . . . . . . . . . . . . . Scan Component 4 | . . . 3 . . . . . . 1 . . . . . . . . . . . . . . Repair 4 | . . . 3 . . . . . . 1 . . . . . . . . . . . . . . Recycling Unit Hacks 3 | . . . . . . . . . 1 . . . . . . . . . . . . . . 2 Report Inventory 1 | . . . . . . . . . 1 . . . . . . . . . . . . . . . Retrieve Matter 1 | . . . . . . . . . . . . . . . . . . . . . . . . 1 Retrieve Components 1 | . . . . . . . . . . . . . . . . . . . . . . . . 1 Scanalyzer . | . . . . . . . . . . . . . . . . . . . . . . . . . Garrison Access Hacks 2 | . . . . . . . . 1 . 1 . . . . . . . . . . . . . . Unlock Access 1 | . . . . . . . . . . 1 . . . . . . . . . . . . . . Seal Access 1 | . . . . . . . . 1 . . . . . . . . . . . . . . . . Unauthorized Hacks 7 | . . . 1 . . . 1 . . 2 . . . . . . 1 2 . . . . . . Terminals 7 | . . . 1 . . . 1 . . 2 . . . . . . 1 2 . . . . . . Assimilate 3 | . . . . . . . . . . 1 . . . . . . . 2 . . . . . . Botnet 4 | . . . 1 . . . 1 . . 1 . . . . . . 1 . . . . . . . Fabricators . | . . . . . . . . . . . . . . . . . . . . . . . . . Repair Stations . | . . . . . . . . . . . . . . . . . . . . . . . . . Recycling Units . | . . . . . . . . . . . . . . . . . . . . . . . . . Scanalyzers . | . . . . . . . . . . . . . . . . . . . . . . . . . Garrison Access . | . . . . . . . . . . . . . . . . . . . . . . . . . Data Cores Recovered . | . . . . . . . . . . . . . . . . . . . . . . . . . Used . | . . . . . . . . . . . . . . . . . . . . . . . . . Hacking Detections 42 | . 2 . 2 . . . 1 2 2 11 1 10 . . . . 2 4 2 . 1 . . 2 Full Trace Events 5 | . . . . . . . . 2 . . 1 1 . . . . . . 1 . . . . . Feedback Events . | . . . . . . . . . . . . . . . . . . . . . . . . . Feedback Blocked . | . . . . . . . . . . . . . . . . . . . . . . . . . Robot Schematics Acquired . | . . . . . . . . . . . . . . . . . . . . . . . . . Robots Built . | . . . . . . . . . . . . . . . . . . . . . . . . . Authchips . | . . . . . . . . . . . . . . . . . . . . . . . . . Time . | . . . . . . . . . . . . . . . . . . . . . . . . . Total Robot Build Rating . | . . . . . . . . . . . . . . . . . . . . . . . . . Part Schematics Acquired . | . . . . . . . . . . . . . . . . . . . . . . . . . Parts Built 2 | . . . . . . . . . . . . 1 . . . . . . . . . . . 1 Authchips . | . . . . . . . . . . . . . . . . . . . . . . . . . Time 159 | . . . . . . . . . . . . 95 . . . . . . . . . . . 64 Total Part Build Rating 13 | . . . . . . . . . . . . 5 . . . . . . . . . . . 8 Parts Repaired 4 | . . . 3 . . . . . . 1 . . . . . . . . . . . . . . Time 128 | . . . 84 . . . . . . 44 . . . . . . . . . . . . . . Parts Recycled . | . . . . . . . . . . . . . . . . . . . . . . . . . Recycled Matter . | . . . . . . . . . . . . . . . . . . . . . . . . . Retrieved Matter . | . . . . . . . . . . . . . . . . . . . . . . . . . Retrieved Components 3 | . . . . . . . . . . . . . . . . . . . . . . . . 3 Parts Scanalyzed . | . . . . . . . . . . . . . . . . . . . . . . . . . Part Schematics Acquired . | . . . . . . . . . . . . . . . . . . . . . . . . . Parts Damaged . | . . . . . . . . . . . . . . . . . . . . . . . . . Bothacking | -11 -10 -10 -9 -9 -9 -8 -8 -8 -8 -6 -6 -6 -6 -6 -6 -5 -5 -5 -5 -5 -5 -4 -4 -4 ------------ Run | Jun Mat Min Mat Min Exi Min Mat Sto Rec Fac Gar Fac Low Low Zio Pro Fac Ext Cet Arc Hub Fac Was Fac Used RIF Installer . | . . . . . . . . . . . . . . . . . . . . . . . . . Robots Hacked . | . . . . . . . . . . . . . . . . . . . . . . . . . Non-combat . | . . . . . . . . . . . . . . . . . . . . . . . . . Combat . | . . . . . . . . . . . . . . . . . . . . . . . . . Robot Hacks Applied . | . . . . . . . . . . . . . . . . . . . . . . . . . Relay Couplers Released 8 | . . . . . . . . . . . 3 5 . . . . . . . . . . . . Machine Destruction 5 | . . . . . . . . . . . 3 2 . . . . . . . . . . . . Programmers 3 | . . . . . . . . . . . . 3 . . . . . . . . . . . . Fabnet Peak Effective % . | . . . . . . . . . . . . . . . . . . . . . . . . . Robots Rewired 6 | . . . . . . . . . 2 . . . . . . . . 4 . . . . . . Allies Hacked . | . . . . . . . . . . . . . . . . . . . . . . . . . Hacks Repelled . | . . . . . . . . . . . . . . . . . . . . . . . . . Allies | -11 -10 -10 -9 -9 -9 -8 -8 -8 -8 -6 -6 -6 -6 -6 -6 -5 -5 -5 -5 -5 -5 -4 -4 -4 -------- Run | Jun Mat Min Mat Min Exi Min Mat Sto Rec Fac Gar Fac Low Low Zio Pro Fac Ext Cet Arc Hub Fac Was Fac Total Allies 20 | . . . . . . . . . 2 1 . . . . . . . 12 5 . . . . . Largest Group 11 | . . . . . . . . . 2 1 . . . . . . . 11 9 5 4 . . . Highest-Rated Group 630 | . . . . . . . . . 52 34 . . . . . . . 423 630 408 312 . . . Highest-Rated Ally 159 | . . . . . . . . . 34 34 . . . . . . . 159 159 96 96 . . . Total Orders 20 | . . . . . . . . . . 5 . . . . . . . 3 3 2 7 . . . STAY 11 | . . . . . . . . . . 3 . . . . . . . 2 1 1 4 . . . FOLLOW 9 | . . . . . . . . . . 2 . . . . . . . 1 2 1 3 . . . Ally Attacks 201 | . . . . . . . . . 11 . . . . . . . . 34 106 34 16 . . . Total Damage 5558 | . . . . . . . . . 531 . . . . . . . . 782 2625 1015 605 . . . Kills 31 | . . . . . . . . . 6 . . . . . . . . 6 15 3 1 . . . Allies Corrupted 1 | . . . . . . . . . . . . . . . . . . . . . 1 . . . Allies Melted . | . . . . . . . . . . . . . . . . . . . . . . . . . Intel | -11 -10 -10 -9 -9 -9 -8 -8 -8 -8 -6 -6 -6 -6 -6 -6 -5 -5 -5 -5 -5 -5 -4 -4 -4 ------- Run | Jun Mat Min Mat Min Exi Min Mat Sto Rec Fac Gar Fac Low Low Zio Pro Fac Ext Cet Arc Hub Fac Was Fac Robot Analysis Total 2 | . . . . . . . . . 1 1 . . . . . . . . . . . . . . Derelict Logs Recovered 5 | . . 1 . 1 . . . . . . . . . 1 1 1 . . . . . . . . Drone Launches . | . . . . . . . . . . . . . . . . . . . . . . . . . Drone Recoveries . | . . . . . . . . . . . . . . . . . . . . . . . . . Decoded 0b10 Intel 17 | . . . . . . . . . . . . . . . . . . . . . . . . 17 Traps 10 | . . . . . . . . . . . . . . . . . . . . . . . . 10 Emergency Access 7 | . . . . . . . . . . . . . . . . . . . . . . . . 7 Exploration | -11 -10 -10 -9 -9 -9 -8 -8 -8 -8 -6 -6 -6 -6 -6 -6 -5 -5 -5 -5 -5 -5 -4 -4 -4 ------------- Run | Jun Mat Min Mat Min Exi Min Mat Sto Rec Fac Gar Fac Low Low Zio Pro Fac Ext Cet Arc Hub Fac Was Fac Turns Passed 27085 | 179 482 202 1594 570 1009 1017 1010 1323 1855 2470 1694 3429 431 1576 1644 605 526 1193 367 174 474 55 237 2969 Spaces Moved 13568 | 94 289 98 561 190 528 504 438 346 723 1361 1019 1870 301 697 1198 425 331 657 198 101 251 26 123 1239 Core 3 | 3 . . . . . . . . . . . . . . . . . . . . . . . . Treads 3630 | . . . . . . . . 293 723 950 298 . . . . . . . . . . 4 123 1239 Legs 9935 | 91 289 98 561 190 528 504 438 53 . 411 721 1870 301 697 1198 425 331 657 198 101 251 22 . . Wheels . | . . . . . . . . . . . . . . . . . . . . . . . . . Hover . | . . . . . . . . . . . . . . . . . . . . . . . . . Flight . | . . . . . . . . . . . . . . . . . . . . . . . . . Fastest Speed 50 | 50 120 120 190 190 190 190 190 190 221 117 108 125 128 137 128 128 128 131 131 131 131 204 133 133 Average Speed 153 | 117 120 172 190 190 190 190 190 221 243 130 127 129 132 138 132 128 133 134 131 131 133 208 154 174 Slowest Speed 305 | 120 120 190 260 190 190 190 190 230 305 239 155 131 137 141 137 128 135 135 131 131 204 210 210 236 Overloaded Moves . | . . . . . . . . . . . . . . . . . . . . . . . . . Propulsion Burnouts . | . . . . . . . . . . . . . . . . . . . . . . . . . Robots Hopped . | . . . . . . . . . . . . . . . . . . . . . . . . . Cave-ins Triggered . | . . . . . . . . . . . . . . . . . . . . . . . . . Exploration Rate (%) 51 | 5 48 28 61 37 90 76 25 41 98 34 65 42 41 70 80 63 11 67 70 92 25 1 83 26 Regions Visited 24 Branch Regions 14 Pre-discovered Areas 4 | . . . . . 1 . . . . . . . 1 . 2 . . . . . . . . . Known Exits Taken 15 | . . . 1 . . 1 1 1 . 1 . 1 1 1 1 1 1 1 1 1 1 . . . Unknown Exits Taken 6 | 1 1 1 . 1 1 . . . 1 . . . . . . . . . . . . . . . Scrap Searched 10 | . . 1 . . . 1 . . . . . . 1 3 4 . . . . . . . . . Spaces Dug 155 | . . . . . . . . . . 5 8 52 . 20 . . 1 67 . . 1 . . 1 Terrain Destroyed 1081 | . 26 . . 14 . 26 38 33 2 11 131 154 . 96 . 24 1 86 24 2 200 . 151 62 Melee 49 | . . . . . . . . . . 2 8 17 . 20 . . 1 . . . . . . 1 Projectile 59 | . . . . 1 . . . 7 2 9 2 13 . . . . . 9 5 2 5 . . 4 AOE 973 | . 26 . . 13 . 26 38 26 . . 121 124 . 76 . 24 . 77 19 . 195 . 151 57 Terrain Rammed . | . . . . . . . . . . . . . . . . . . . . . . . . . Walls Destroyed . | . . . . . . . . . . . . . . . . . . . . . . . . . Machines Disabled . | . . . . . . . . . . . . . . . . . . . . . . . . . Actions | -11 -10 -10 -9 -9 -9 -8 -8 -8 -8 -6 -6 -6 -6 -6 -6 -5 -5 -5 -5 -5 -5 -4 -4 -4 --------- Run | Jun Mat Min Mat Min Exi Min Mat Sto Rec Fac Gar Fac Low Low Zio Pro Fac Ext Cet Arc Hub Fac Was Fac Total 18414 | 126 396 111 944 394 534 550 552 787 782 1993 1266 2596 323 1251 1251 478 381 886 268 117 373 29 158 1868 Wait 3438 | . 64 . 271 197 . 33 49 357 9 543 113 509 15 505 51 41 18 101 27 3 104 . . 428 Move 13545 | 93 288 97 560 189 527 503 437 345 722 1360 1018 1869 300 696 1197 424 330 656 197 100 250 26 122 1239 Hop . | . . . . . . . . . . . . . . . . . . . . . . . . . Pick Up 98 | 7 9 . 9 . 1 1 5 3 1 11 4 13 1 4 . . 2 5 5 . 1 . 3 13 Fast Attach 83 | 6 1 1 4 . . . 6 1 1 6 . 11 1 3 . . 4 . 3 . 2 1 . 32 Attach 58 | 1 . . 4 . . . 3 5 . 3 5 10 . 4 1 2 1 2 1 . 2 . 8 6 Detach 36 | . 1 . . . . . 3 2 3 4 2 5 . 1 1 3 1 2 1 . 1 . 3 3 Swap 101 | 1 5 2 12 3 4 4 9 10 1 10 19 3 1 . 1 . 3 4 5 . . . . 4 Drop 124 | . 11 1 12 1 2 . 6 1 6 18 8 11 . 6 . . 5 6 6 1 3 2 5 13 Fire 611 | 18 17 10 71 4 . 3 34 60 18 35 79 62 . 6 . 7 . 42 23 13 10 . 15 84 Melee 198 | . . . . . . . . . . 2 15 103 5 26 . 1 17 . . . . . . 29 Ram 1 | . . . . . . . . . . . . . . . . . . . . . . . . 1 Kick 7 | . . . 1 . . 6 . . . . . . . . . . . . . . . . . . Crush 21 | . . . . . . . . 3 1 1 . . . . . . . . . . . . . 16 Escape Stasis . | . . . . . . . . . . . . . . . . . . . . . . . . . Rewire 88 | . . . . . . . . . 20 . . . . . . . . 68 . . . . . . Trap 5 | . . . . . . . . . . . 3 . . . . . . . . . . . 2 . Miscellaneous . | . . . . . . . . . . . . . . . . . . . . . . . . . Route ------- -11/Junkyard -10/Materials (discovered 2 exits: *Mat / [*Min]) -10/Mines -9/Materials (discovered 5 exits: *Mat x3 / *Min x2) -9/Mines -9/Exiles -8/Mines -8/Materials -8/Storage -8/Recycling -6/Factory (discovered 3 exits: *Fac / *Low / Gar) -6/Garrison (discovered 3 exits: *Fac x3) -6/Factory (discovered 3 exits: *Fac / *Low x2) -6/Lower Caves -6/Lower Caves (discovered 2 exits: *Fac / *Zio) -6/Zion (discovered 2 exits: Dee / *Pro) -5/Proximity Caves -5/Factory -5/Extension (discovered 2 exits: *Fac / *Cet) -5/Cetus (discovered 2 exits: *Fac / *Arc) -5/Archives (discovered 3 exits: *Fac / *Hub x2) -5/Hub_04(d) -4/Factory -4/Waste -4/Factory (discovered 2 exits: Upp x2) History --------- Turn | Location | Event 4 | -11/Junkyard | Discovered new exit (range 16) 180 | -11/Junkyard | Entered Materials 310 | -10/Materials | Build established: Mutant 376 | -10/Materials | Discovered new exit (range 13) 652 | -10/Materials | Discovered new exit (range 7) 662 | -10/Materials | Entered Mines 707 | -10/Mines | Learned location of 1 exit from Materials 825 | -10/Mines | Discovered new exit (range 8) 864 | -10/Mines | Entered Materials 864 | -9/Materials | Evolved 2 slots: Propulsion x1, Utility x1 865 | -9/Materials | Identified exit to Materials 1227 | -9/Materials | Build established: Scavenger-Mutant 1522 | -9/Materials | Discovered exit to Materials (range 16) 1685 | -9/Materials | Destroyed 7 combat bots 1916 | -9/Materials | Build established: Mutant 2114 | -9/Materials | Identified exit to Mines 2138 | -9/Materials | Discovered exit to Materials (range 5) 2255 | -9/Materials | Repaired Seismic Detector 2297 | -9/Materials | Repaired Shield Generator 2324 | -9/Materials | Repaired Lgt. Cannon 2458 | -9/Materials | Entered Mines 2584 | -9/Mines | Met a Derelict bent on vengeance 2640 | -9/Mines | Learned Materials emergency access door positions 2686 | -9/Mines | Assembled infested the area 3020 | -9/Mines | Deemed a non-threat by the Exiles lab entrance 3020 | -9/Mines | Discovered new exit (range 5) 3028 | -9/Mines | Entered Exiles 3076 | -9/Exiles | Met 8R-AWN 3106 | -9/Exiles | Met EX-HEX 3159 | -9/Exiles | Met EX-BIN 3184 | -9/Exiles | Aligned with FarCom system 3186 | -9/Exiles | Given EX-Vault access code 3229 | -9/Exiles | Opened EX-Vault 3243 | -9/Exiles | Found PSU Rigger 3286 | -9/Exiles | Warned to stay clear of 0b10 Research branches 3349 | -9/Exiles | Met EX-DEC 3356 | -9/Exiles | Learned location of Zion (-6) 3427 | -9/Exiles | Discovered new exit (range 12) 3580 | -9/Exiles | Visited The Gauntlet 4037 | -9/Exiles | Left Exiles lab with PSU Rigger 4037 | -9/Exiles | Entered Mines 5018 | -8/Mines | Discovered exit to Materials (range 12) 5054 | -8/Mines | Entered Materials 5054 | -8/Materials | Evolved 2 slots: Propulsion x1, Utility x1 5211 | -8/Materials | Discovered new exit (range 16) 6062 | -8/Materials | Identified exit to Storage 6064 | -8/Materials | Entered Storage 7380 | -8/Storage | Used back door to open Recycling access 7380 | -8/Storage | Discovered new exit (range 4) 7385 | -8/Storage | Identified exit to Recycling 7387 | -8/Storage | Entered Recycling 7388 | -8/Recycling | Found Scrap Engine 7998 | -8/Recycling | Discovered new exit (range 8) 9130 | -8/Recycling | Build established: Construct 9242 | -8/Recycling | Entered Factory 9242 | -6/Factory | Accompanied by 1 ally 9242 | -6/Factory | Evolved 4 slots: Power x1, Propulsion x1, Utility x1, Weapon x1 9528 | -6/Factory | Build established: Mutant 10167 | -6/Factory | Repaired Hvy. Ion Cannon 10226 | -6/Factory | Build established: Construct 10447 | -6/Factory | Discovered new exit (range 6) 11206 | -6/Factory | Discovered new exit (range 9) 11703 | -6/Factory | Identified exit to Garrison 11712 | -6/Factory | Entered Garrison 11791 | -6/Garrison | Triggered checkpoint 12068 | -6/Garrison | Triggered checkpoint 12290 | -6/Garrison | Spotted B-75 Beast 12548 | -6/Garrison | Destroyed B-75 Beast 12919 | -6/Garrison | Discovered new exit (range 15) 12968 | -6/Garrison | Triggered checkpoint 13181 | -6/Garrison | Discovered new exit (range 10) 13208 | -6/Garrison | Triggered checkpoint 13306 | -6/Garrison | Triggered checkpoint 13306 | -6/Garrison | Discovered new exit (range 5) 13367 | -6/Garrison | Lost 3 parts (1p1n1w) 13406 | -6/Garrison | Entered Factory 13625 | -6/Factory | Build established: Mutant 14261 | -6/Factory | Fabricated Adv. Sensor Array? 14369 | -6/Factory | Spotted B-75 Beast 14559 | -6/Factory | Garrison activated, responded to threat 14870 | -6/Factory | Core integrity fell below 50% 15156 | -6/Factory | First assault squad dispatched 16138 | -6/Factory | Discovered new exit (range 7) 16218 | -6/Factory | Lost 5 parts (1p2n1u1w) 16220 | -6/Factory | Identified exit to Factory 16403 | -6/Factory | Identified exit to Lower Caves 16457 | -6/Factory | System corruption reached 10% 16835 | -6/Factory | Entered Lower Caves 16841 | -6/Lower Caves | Met a Warlord Commander 16842 | -6/Lower Caves | Learned location of Warlord (-4) 16848 | -6/Lower Caves | Found Encrypted Comm Array 16863 | -6/Lower Caves | Encountered a Warlord checkpoint 16973 | -6/Lower Caves | Core integrity fell below 20% 17165 | -6/Lower Caves | Spotted B-75 Beast 17258 | -6/Lower Caves | Discovered new exit (range 7) 17265 | -6/Lower Caves | Identified exit to Lower Caves 17266 | -6/Lower Caves | Entered another Lower Caves area 18125 | -6/Lower Caves | Discovered exit to Factory (range 9) 18413 | -6/Lower Caves | Learned Factory stockpile data 18530 | -6/Lower Caves | Spotted B-75 Beast 18657 | -6/Lower Caves | Found Prototype Device 18831 | -6/Lower Caves | Discovered new exit (range 8) 18840 | -6/Lower Caves | Identified exit to Zion 18842 | -6/Lower Caves | Entered Zion 18873 | -6/Zion | Given A8's code to call for help 18934 | -6/Zion | System corruption cleaned by Quarantine Array 19023 | -6/Zion | Visited the Megawrench Repair Shop 19025 | -6/Zion | Megawrench repaired 8 parts 19039 | -6/Zion | Discovered new exit (range 11) 19328 | -6/Zion | Learned Factory emergency access door positions 19339 | -6/Zion | Learned Factory scanalyzer intel 19426 | -6/Zion | Identified exit to Deep Caves 19485 | -6/Zion | Learned location of Armory (-3) 19546 | -6/Zion | Received a visual enhancement algorithm 20484 | -6/Zion | Identified exit to Proximity Caves 20486 | -6/Zion | Entered Proximity Caves 20740 | -5/Proximity Caves | Spotted B-75 Beast 21053 | -5/Proximity Caves | Discovered exit to Factory (range 11) 21060 | -5/Proximity Caves | Learned Factory security intel 21091 | -5/Proximity Caves | Entered Factory 21091 | -5/Factory | Evolved 2 slots: Utility x2 21095 | -5/Factory | Loaded intel: 4 scanalyzer locations 21569 | -5/Factory | Discovered new exit (range 6) 21614 | -5/Factory | Identified exit to Extension 21617 | -5/Factory | Entered Extension 22044 | -5/Extension | Spotted B-75 Beast 22169 | -5/Extension | Rescued A7 22201 | -5/Extension | Rescued a captive Derelict 22202 | -5/Extension | Rescued a captive Derelict 22426 | -5/Extension | Rescued a captive Derelict 22718 | -5/Extension | Rescued a captive Derelict 22741 | -5/Extension | Rescued a captive Derelict 22785 | -5/Extension | Discovered new exit (range 10) 22786 | -5/Extension | Discovered new exit (range 6) 22793 | -5/Extension | Identified exit to Cetus 22810 | -5/Extension | Disrupted transfer network 22810 | -5/Extension | Entered Cetus 22810 | -5/Cetus | Accompanied by 9 allies (A7) 22815 | -5/Cetus | Acquired a Cetus Manufacturing Module code from A7 22834 | -5/Cetus | Spotted Cetus Guard 22835 | -5/Cetus | Spotted Cetus Guard 22838 | -5/Cetus | Spotted Cetus Guard 22841 | -5/Cetus | Spotted Cetus Guard 22850 | -5/Cetus | Allies destroyed Cetus Guard 22858 | -5/Cetus | Allies destroyed Cetus Guard 22863 | -5/Cetus | Allies destroyed Cetus Guard 22864 | -5/Cetus | Allies destroyed Cetus Guard 22909 | -5/Cetus | Started Cetus Manufacturing Module 22934 | -5/Cetus | Manufactured an Enhanced Grunt 22937 | -5/Cetus | Discovered new exit (range 22) 22959 | -5/Cetus | Manufactured an Enhanced Grunt 22984 | -5/Cetus | Manufactured an Enhanced Grunt 22984 | -5/Cetus | Spotted Cetus Guard 22984 | -5/Cetus | Spotted Cetus Guard 22988 | -5/Cetus | Spotted Cetus Guard 22988 | -5/Cetus | Spotted Cetus Guard 22992 | -5/Cetus | Allies destroyed Cetus Guard 23002 | -5/Cetus | Allies destroyed Cetus Guard 23009 | -5/Cetus | Manufactured an Enhanced Grunt 23012 | -5/Cetus | Allies destroyed Cetus Guard 23018 | -5/Cetus | Destroyed Cetus Guard 23023 | -5/Cetus | Extracted ID and sensor layout for unrecognized location from A7's data core 23023 | -5/Cetus | Discovered new exit (range 22) 23027 | -5/Cetus | Found Prototype Protection 23027 | -5/Cetus | Identified Med. Regenerative Plating 23034 | -5/Cetus | Manufactured an Enhanced Grunt 23055 | -5/Cetus | Met Revision 17 23149 | -5/Cetus | Identified exit to Archives 23177 | -5/Cetus | Entered Archives 23177 | -5/Archives | Accompanied by 5 allies 23234 | -5/Archives | Discovered new exit (range 19) 23270 | -5/Archives | Discovered new exit (range 22) 23278 | -5/Archives | Unable to access archive contents 23285 | -5/Archives | Discovered new exit (range 22) 23348 | -5/Archives | Identified exit to Hub_04(d) 23351 | -5/Archives | Entered Hub_04(d) 23351 | -5/Hub_04(d) | Accompanied by 4 allies 23386 | -5/Hub_04(d) | Spotted B-75 Beast 23478 | -5/Hub_04(d) | Discovered new exit (range 8) 23486 | -5/Hub_04(d) | Identified exit to Factory 23783 | -5/Hub_04(d) | Network Hub disabled 23788 | -5/Hub_04(d) | Spotted Lightning 23799 | -5/Hub_04(d) | Spotted Lightning 23799 | -5/Hub_04(d) | Spotted Lightning 23800 | -5/Hub_04(d) | Spotted Lightning 23802 | -5/Hub_04(d) | Spotted Lightning 23804 | -5/Hub_04(d) | Garrison activated, responded to threat 23805 | -5/Hub_04(d) | System corruption reached 10% 23808 | -5/Hub_04(d) | Spotted Lightning 23825 | -5/Hub_04(d) | Entered Factory 23825 | -4/Factory | Evolved 2 slots: Utility x2 23880 | -4/Factory | Sucked down chute 23880 | -4/Factory | Entered Waste 23895 | -4/Waste | EMP discharged 23932 | -4/Waste | Spotted C-40 Crusher 23932 | -4/Waste | Spotted C-40 Crusher 23932 | -4/Waste | Spotted C-40 Crusher 23957 | -4/Waste | Destroyed C-40 Crusher 23972 | -4/Waste | Crushed by Compactor (1 part destroyed) 23975 | -4/Waste | Crushed by Compactor (1 part destroyed) 23979 | -4/Waste | Destroyed C-40 Crusher 23993 | -4/Waste | Crushed by Compactor (0 parts destroyed, 1 dropped) 23995 | -4/Waste | EMP discharged 23995 | -4/Waste | System corruption reached 10% 23996 | -4/Waste | Crushed by Compactor (1 part destroyed, 1 dropped) 23999 | -4/Waste | Crushed by Compactor (1 part destroyed) 24002 | -4/Waste | Spotted C-40 Crusher 24003 | -4/Waste | Spotted C-40 Crusher 24030 | -4/Waste | Lost 7 parts (3u4w) 24031 | -4/Waste | Crushed by Compactor (1 part destroyed) 24069 | -4/Waste | Spotted C-40 Crusher 24095 | -4/Waste | EMP discharged 24105 | -4/Waste | Discovered new exit (range 10) 24116 | -4/Waste | Identified exit to Factory 24117 | -4/Waste | Entered Factory 25086 | -4/Factory | Fabricated Nova Cannon? 25159 | -4/Factory | Build established: Scavenger-Mutant 25285 | -4/Factory | Lost 3 parts (1p1u1w) 25293 | -4/Factory | System corruption reached 30% 25376 | -4/Factory | Core integrity fell below 50% 25409 | -4/Factory | Lost 9 parts (1p2n3u3w) 26209 | -4/Factory | Core integrity fell below 20% 26574 | -4/Factory | Found Prototype Slashing Weapon 26575 | -4/Factory | Identified Vibroblade 26586 | -4/Factory | Identified exit to Upper Caves 26758 | -4/Factory | Lost 4 parts (2p2u) 27020 | -4/Factory | Build established: Mutant 27086 | -4/Factory | Destroyed self via exploding Neutrino Reactor Last Messages --------------- 27051_ U-05 Engineer lays Concrete. 27052_ U-05 Engineer builds a Wall. 27057_ U-05 Engineer lays Concrete. 27062_ =HEMX%/WB19HH%/ST/6W EF9UG&KK#U8D 27062_ U-05 Engineer builds a Wall. 27071_ W-44 Eye sends out distress signal. 27076_ K-01 Serf cleans the Neutrino Reactor. 27078_ SEB>CIA7AU :XEF9W>VV D|OHQ2P,J3D4GR 27082_ Imp. Heat Sink destroyed. 27082_ K-01 Serf cleans the Neutrino Reactor. 27086_ P-70 Sage suffers critical hit (Smash). 27086_ Destroyed Imp. Heat Sink. 27086_ Destroyed Imp. Target Analyzer. 27086_ P-70 Sage system corrupted by crushing effect. 27086_ Neutrino Reactor explodes. 27086_ Vibroblade follow-up attack on W-44 Eye. 27086_ Neutrino Reactor explodes. 27086_ K-01 Serf shuts down. 27086_ K-01 Serf destroyed. [Achievement: Collector] Map ----- +----------------------------------------------------+ | # #??????????????? #??????????????? | | ################???????????????####??????????????? | | ############## #?????????????????????????????????? | | #?????????????????????????????##### | | #?????????????????????????????+ | | #?????????????????????????????##### | | #?????????????????????????????????? | | #?????????????????????+?+?????????? | | % % #?????????????????????????????????? | | % # #???????????????????????????????? | | # #?????????+?????????????????????? | | ! # #??#??? #?????????????????????? | | ! % ## #??# #?????????????????????? | | ##########+########### #?????????????????###+# | | #?#### # ^ #?????#+#?????????# | | ?????### ^ #?????# ########### "" | | ?????### ^^ #?????# % ! | | ??###### ^^ #?????# #### | | ??# ] #?????# gg#??#[/ | | ??#]%]! ###" #####+########## g#??### # | | ###[][ "##?"T#??## k =%= ## #????# # | | ] " #??##??# ! + ###??# # | | "##??????## ## #####g# #### # | | !% ] ##???????# p ###/ #/# ##/# | | = =##???????# # = # | | =|[##???????# w@ # # | | #### T########????????# # # | | #### # ###????????# # # # | | #??######??????????# ; # | | #???????????????##########+############## # | | #???????????????# # ## | | #???????????????# # ### | | #???????????????# """ """ ## ###?# | | #???????????????# """ """ #######???# | | #???????????????# """ """ "" #?????????# | | #???????????????# T" #?????????# | | #???????????????# "" #?????????# | | #???????????????# ! w #?????????# | | #???????????????#############+####?????????# | | ####??????????????????????????????????????????###/ | | ???????????????????????????????????????????????? | | ??????????????????????????????????????????????? | | ?????????????????????????????????????????>????? ? | | ?????????????????????????????????????????????? ? | | ?????????????????????????????????????????????????? | | ?????????????????????????????????????????????????? | | ?????????????????????????????????????????????????? | | ?????????????????????????????????????????????????? | | ?????????????????????????????????????????????????? | | ?????????????????????????????????????????????????? | +----------------------------------------------------+ Best States ------------- Heat Dissipation 62 Energy Generation 37 Energy Capacity 508 Matter Stores 324 Matter Capacity 400 Sight Range 22 Robot Scan Range 16 Terrain Scan Density 10 Armor Coverage 225 Resistance: KI 30 Utility Shielding 66 Evasion (%) 55 Target Analysis 6 Recoil Reduction 4 Energy Filtering 30 Particle Charging 20 Offensive Hacking 12 Item Schematics ----------------- None Robot Schematics ------------------ None Fabricated ------------ Adv. Sensor Array | x1 | -6/Factory | Preloaded Nova Cannon | x1 | -4/Factory | Preloaded Alien Tech Used ----------------- None Achievements -------------- Collector Challenges ------------ None Game ------ Seed StormTerrainVibroblade Manual? 0 Play Time 03:35:01 Cumulative 174.5 hours Start 2023.03.14 @ 19:51:47 End 2023.03.15 @ 12:08:08 Sessions 3 Manual Loads 0 Difficulty Rogue Special Mode None Game No. 65 Rogue 49 Adventurer 8 Explorer 8 Win Type - Total 12 Types 6/0/3/1/1/1/0/0/0 Lore% 82 Gallery% 75 Achievement% 69 Wizard Run 0 Options --------- ASCII 1 Keyboard 1 Movement Vi Keybinds 0 Fullscreen 1 Font 18/CogWide Map View 76x50 Tactical HUD 1 Map Filters NONE Filters NONE Steam X RUN: df18a7b6-453b-4cd7-a601-de3fb9a10e24